bitfinex-derivatives/quotes_SOLF0:USTF0_20251024
["timestamp","ask_amount","ask_price","bid_price","bid_amount"]
[1761326395306,2.75,191.12,191.05,3.42349829]
[1761326395606,2.75,191.12,191.05,4.74349829]
[1761326400310,2.75,191.12,191.05,9.55636869]
[1761326401401,2.75,191.12,191.06,1.33]
[1761326402009,2.75,191.12,191.05,4.75349829]
[1761326402211,2.75,191.12,191.05,1.33]
[1761326403003,2.75,191.12,191.04,4.8128704]
[1761326403212,2.75,191.12,191.02,4.8128704]
[1761326403606,2.83,191.11,191.01,6.1428704]
[1761326404009,2.83,191.11,191.01,4.8128704]
[1761326404308,2.83,191.11,191.0,3.42349829]
[1761326404309,2.83,191.11,191.0,9.56636869]
[1761326405507,2.83,191.11,191.01,1.33]
[1761326406513,2.83,191.11,191.04,1.33]
[1761326407115,2.83,191.11,191.07,1.33]
[1761326408709,2.83,191.11,191.03,4.8128704]
[1761326408905,2.83,191.11,191.04,4.74349829]
[1761326409312,2.83,191.11,191.05,1.32]
[1761326412618,2.83,191.11,191.04,1.32]
[1761326413412,2.83,191.11,191.07,1.32]
[1761326415618,66.05,191.12,191.07,1.32]
[1761326415818,2.67,191.11,191.07,1.32]
[1761326418411,2.67,191.11,191.04,6.1328704]
[1761326418610,2.67,191.11,191.06,3.42349829]
[1761326418817,2.67,191.11,191.07,1.32]
[1761326419114,8.48030064,191.19,191.1,3.42349829]
[1761326419115,6.87550545,191.19,191.1,3.42349829]
[1761326419313,2.0,191.19,191.15,1.32]
[1761326420222,2.0,191.19,191.17,1.32]
[1761326420424,2.0,191.19,191.18,4.71822862]
[1761326421125,2.0,191.19,191.18,6.03822862]
[1761326422821,2.0,191.19,191.18,8.22609284]
[1761326426428,2.0,191.19,191.18,6.03822862]
[1761326426630,2.0,191.19,191.18,8.22609284]
[1761326427320,2.0,191.19,191.18,6.03822862]
[1761326427517,2.0,191.19,191.18,8.22609284]
[1761326430622,4.67,191.19,191.18,4.71822862]
[1761326433225,2.0,191.19,191.18,4.71822862]
[1761326433531,2.67,191.35,191.18,71.28609284]
[1761326433734,2.67,191.35,191.29,2.18786422]
[1761326433937,2.67,191.35,191.31,2.18786422]
[1761326434121,2.67,191.35,191.31,6.83947235]
[1761326434929,2.67,191.38,191.31,6.83947235]
[1761326435234,2.67,191.38,191.31,4.65160813]
[1761326435533,2.67,191.36,191.31,2.18786422]
[1761326439125,4.86,191.32,191.29,2.18786422]
[1761326439327,2.86,191.31,191.29,2.18786422]
[1761326439722,2.86,191.31,191.23,4.7058]
[1761326439922,2.86,191.31,191.24,4.63140724]
[1761326440122,2.86,191.31,191.27,2.18786422]
[1761326440936,2.86,191.31,191.25,2.18786422]
[1761326441836,2.86,191.31,191.23,2.18786422]
[1761326442031,2.86,191.31,191.24,4.63112426]
[1761326442229,2.86,191.31,191.19,4.7068]
[1761326442426,2.86,191.31,191.24,2.18786422]
[1761326443638,2.86,191.3,191.24,2.18786422]
[1761326443937,2.86,191.3,191.23,2.18786422]
[1761326444530,2.86,191.3,191.16,4.7073]
[1761326444728,2.86,191.26,191.2,2.18786422]
[1761326446335,2.86,191.26,191.21,4.63340457]
[1761326446533,2.86,191.26,191.2,2.18786422]
[1761326446734,2.86,191.26,191.21,4.63384281]
[1761326446935,2.86,191.26,191.2,2.18786422]
[1761326447135,2.86,191.26,191.16,4.7073]
[1761326447337,2.86,191.26,191.19,2.18786422]
[1761326447533,2.86,191.26,191.2,4.63348975]
[1761326449237,2.86,191.26,191.21,2.18786422]
[1761326450141,2.86,191.26,191.22,4.63422422]
[1761326450336,2.86,191.26,191.21,2.18786422]
[1761326450642,2.86,191.26,191.22,4.63590088]
[1761326450835,2.86,191.26,191.21,2.18786422]
[1761326451042,2.86,191.26,191.22,4.63618031]
[1761326451242,2.86,191.26,191.23,4.63618031]
[1761326451443,2.86,191.26,191.24,4.63618031]
[1761326451742,2.86,191.26,191.21,2.18786422]
[1761326451942,2.86,191.26,191.22,4.6371083]
[1761326452143,2.86,191.26,191.23,4.6371083]
[1761326452345,2.86,191.26,191.24,4.6371083]
[1761326452547,18.86,191.28,191.23,2.18786422]
[1761326452740,2.86,191.27,191.24,4.63810394]
[1761326452938,2.86,191.27,191.23,2.18786422]
[1761326453138,2.86,191.27,191.24,4.63810403]
[1761326453341,2.86,191.27,191.23,2.18786422]
[1761326453546,65.60786422,191.3,191.23,2.18786422]
[1761326453547,66.28,191.3,191.24,4.63938408]
[1761326453749,2.86,191.29,191.25,4.63938408]
[1761326453950,2.86,191.29,191.26,4.63938408]
[1761326454145,2.86,191.29,191.23,2.18786422]
[1761326454350,2.86,191.29,191.24,4.63804689]
[1761326454648,2.86,191.29,191.25,4.63804689]
[1761326454848,2.86,191.29,191.26,4.63804689]
[1761326455050,2.86,191.29,191.27,4.63804689]
[1761326455245,2.86,191.29,191.23,2.18786422]
[1761326455445,2.86,191.29,191.24,4.66603778]
[1761326455651,2.86,191.29,191.23,2.18786422]
[1761326455652,2.86,191.29,191.25,4.66603778]
[1761326455852,2.86,191.29,191.26,4.66603778]
[1761326456053,2.86,191.29,191.27,4.66603778]
[1761326456253,2.86,191.29,191.23,2.18786422]
[1761326456554,2.86,191.29,191.24,4.66766454]
[1761326456755,2.86,191.29,191.25,4.66766454]
[1761326456953,2.86,191.29,191.26,4.66766454]
[1761326457148,2.86,191.29,191.27,4.66766454]
[1761326457344,2.86,191.29,191.22,2.18786422]
[1761326457655,2.86,191.29,191.23,4.67011306]
[1761326457855,2.86,191.29,191.24,4.67011306]
[1761326458060,2.86,191.29,191.25,4.67011306]
[1761326458260,2.86,191.29,191.26,4.67011306]
[1761326458459,2.86,191.29,191.27,4.67011306]
[1761326458660,2.86,191.29,191.22,2.18786422]
[1761326458853,2.86,191.29,191.23,4.67247206]
[1761326459054,2.86,191.29,191.24,4.67247206]
[1761326459255,2.86,191.29,191.25,4.67247206]
[1761326459450,2.86,191.29,191.26,4.67247206]
[1761326459653,2.86,191.29,191.27,4.67247206]
[1761326459857,2.86,191.29,191.28,4.67247206]
[1761326460562,2.86,191.29,191.2,4.7064]
[1761326460762,2.87,191.28,191.21,2.18786422]
[1761326466271,2.87,191.28,191.17,4.8128704]
[1761326466460,2.87,191.28,191.2,2.18786422]
[1761326467466,2.87,191.28,191.2,6.89436422]
[1761326467676,2.87,191.28,191.22,2.18786422]
[1761326471275,18.84,191.31,191.24,2.18786422]
[1761326471576,2.84,191.31,191.24,187.11593121]
[1761326471974,65.42,191.32,191.26,2.18786422]
[1761326472271,65.42,191.32,191.24,184.92806699]
[1761326472272,2.0,191.32,191.28,2.18786422]
[1761326472474,2.0,191.32,191.31,2.18786422]
[1761326473177,2.0,191.32,191.29,2.18786422]
[1761326475374,2.0,191.32,191.31,2.18786422]
[1761326478273,2.0,191.32,191.28,4.7045]
[1761326478274,2.0,191.32,191.29,2.18786422]
[1761326478583,2.0,191.32,191.28,4.7045]
[1761326478776,2.0,191.32,191.29,2.18786422]
[1761326481480,4.84,191.32,191.29,2.18786422]
[1761326481678,2.84,191.43,191.31,2.18786422]
[1761326481877,2.84,191.43,191.37,2.18786422]
[1761326482783,2.84,191.43,191.35,4.7028]
[1761326483079,2.84,191.43,191.33,4.7034]
[1761326484389,2.84,191.41,191.33,4.7034]
[1761326485278,63.4,191.4,191.34,3.41187729]
[1761326485578,66.24,191.4,191.34,3.41187729]
[1761326486182,2.84,191.4,191.34,3.41187729]
[1761326486384,66.24,191.39,191.34,3.41187729]
[1761326486680,63.4,191.39,191.34,3.41187729]
[1761326486980,66.24,191.39,191.34,3.41187729]
[1761326487181,2.84,191.38,191.34,3.41187729]
[1761326488980,2.84,191.45,191.34,3.41187729]
[1761326489185,2.84,191.45,191.33,4.7034]
[1761326489186,2.84,191.45,191.37,3.41187729]
[1761326489388,66.22,191.44,191.37,3.41187729]
[1761326489587,2.84,191.43,191.37,3.41187729]
[1761326490282,66.22,191.42,191.37,3.41187729]
[1761326490486,2.84,191.41,191.37,3.41187729]
[1761326491287,2.84,191.45,191.37,3.41187729]
[1761326491490,2.84,191.43,191.37,3.41187729]
[1761326493687,2.84,191.44,191.37,3.41187729]
[1761326493889,63.36,191.43,191.37,3.41187729]
[1761326494087,2.84,191.44,191.37,3.41187729]
[1761326494283,63.36,191.43,191.37,3.41187729]
[1761326494478,63.36,191.42,191.37,8.11407729]
[1761326495084,2.84,191.41,191.33,3.41187729]
[1761326496090,63.36,191.4,191.33,3.41187729]
[1761326496680,2.84,191.39,191.31,3.41187729]
[1761326497791,63.36,191.38,191.31,3.41187729]
[1761326498688,63.36,191.38,191.32,4.7035]
[1761326499091,2.88,191.37,191.32,4.7035]
[1761326500089,63.36,191.36,191.32,4.7035]
[1761326501293,2.88,191.37,191.32,4.7035]
[1761326501594,63.36,191.37,191.31,3.41187729]
[1761326502989,63.36,191.37,191.34,4.703]
[1761326503186,66.24,191.37,191.27,4.8128704]
[1761326503390,66.24,191.37,191.3,3.41187729]
[1761326504896,66.24,191.37,191.32,4.7036]
[1761326505089,66.24,191.37,191.32,190.02015126]
[1761326505291,2.88,191.36,191.32,190.02015126]
[1761326506992,2.88,191.36,191.32,185.31655126]
[1761326507397,2.88,191.36,191.32,190.02015126]
[1761326507797,2.88,191.36,191.32,4.7036]
[1761326508193,2.88,191.4,191.32,4.7036]
[1761326508394,63.34,191.39,191.32,4.7036]
[1761326508796,63.34,191.39,191.33,4.7033]
[1761326508997,2.88,191.38,191.33,190.60434752]
[1761326509596,66.22,191.37,191.33,190.60434752]
[1761326511403,66.2,191.37,191.33,190.60434752]
[1761326512303,2.88,191.36,191.33,190.60434752]
[1761326512704,66.2,191.36,191.33,190.60434752]
[1761326513397,63.32,191.36,191.33,190.60434752]
[1761326513898,63.32,191.37,191.33,190.60434752]
[1761326514102,2.88,191.36,191.33,190.60434752]
[1761326514297,2.88,191.35,191.33,190.60434752]
[1761326515101,66.2,191.35,191.33,190.60434752]
[1761326515906,63.32,191.35,191.33,190.60434752]
[1761326516301,2.88,191.42,191.33,185.90104752]
[1761326516506,63.34,191.41,191.33,190.71391792]
[1761326516701,2.65,191.41,191.33,190.71391792]
[1761326516901,63.34,191.4,191.33,190.71391792]
[1761326517106,63.34,191.39,191.33,190.71391792]
[1761326518111,65.99,191.39,191.35,4.7028]
[1761326518305,2.65,191.39,191.35,4.7028]
[1761326518608,65.97,191.39,191.35,4.7028]
[1761326519303,2.65,191.39,191.35,4.7028]
[1761326519502,42.15,191.39,191.35,4.7028]
[1761326519702,65.97,191.39,191.35,4.7028]
[1761326519907,63.32,191.39,191.35,4.7028]
[1761326520108,65.97,191.39,191.35,4.7028]
[1761326520310,2.65,191.39,191.35,4.7028]
[1761326520607,65.97,191.39,191.35,4.7028]
[1761326521406,2.65,191.38,191.35,4.7028]
[1761326521914,2.65,191.38,191.33,190.71391792]
[1761326522108,2.65,191.38,191.33,185.90104752]
[1761326522510,2.65,191.36,191.33,185.90104752]
[1761326523304,62.28,191.35,191.33,185.90104752]
[1761326523513,64.93,191.35,191.33,185.90104752]
[1761326523712,2.65,191.34,191.31,4.8128704]
[1761326523915,2.65,191.33,191.29,4.8128704]
[1761326524219,2.65,191.33,191.27,4.8128704]
[1761326525014,63.34,191.32,191.28,4.8128704]
[1761326525215,2.65,191.31,191.27,4.8128704]
[1761326526218,2.65,191.31,191.26,4.8128704]
[1761326526912,3.41187729,191.3,191.24,4.62664447]
[1761326527112,3.41187729,191.3,191.18,6.40645701]
[1761326527113,2.65,191.28,191.18,6.40645701]
[1761326527316,2.65,191.28,191.17,6.40645701]
[1761326527507,45.26,191.27,191.17,6.40645701]
[1761326527815,2.82,191.26,191.17,6.40645701]
[1761326528016,48.98,191.25,191.17,6.40645701]
[1761326528218,48.98,191.25,191.18,3.41187729]
[1761326529107,2.82,191.25,191.18,3.41187729]
[1761326529819,2.82,191.25,191.19,4.7067]
[1761326531022,2.82,191.25,191.2,4.7064]
[1761326531218,2.82,191.25,191.18,3.41187729]
[1761326531918,2.82,191.25,191.14,6.40645701]
[1761326532116,2.82,191.25,191.19,4.7067]
[1761326532615,2.82,191.32,191.21,3.41187729]
[1761326532814,16.0,191.34,191.24,3.41187729]
[1761326533117,2.82,191.35,191.24,3.41187729]
[1761326534120,2.82,191.35,191.26,4.7049]
[1761326534314,2.82,191.33,191.26,4.7049]
[1761326534514,66.22,191.33,191.26,4.7049]
[1761326534823,2.82,191.33,191.26,4.7049]
[1761326535022,66.22,191.33,191.26,4.7049]
[1761326535319,2.82,191.33,191.26,4.7049]
[1761326537525,16.0,191.37,191.27,3.41187729]
[1761326537526,2.82,191.36,191.27,3.41187729]
[1761326537724,63.38,191.35,191.27,3.41187729]
[1761326537924,2.82,191.36,191.27,3.41187729]
[1761326538127,66.2,191.36,191.29,4.7042]
[1761326539328,2.82,191.35,191.27,3.41187729]
[1761326539930,19.58,191.35,191.28,4.7045]
[1761326540228,19.58,191.35,191.27,3.41187729]
[1761326540427,2.82,191.39,191.27,3.41187729]
[1761326540627,2.82,191.37,191.27,3.41187729]
[1761326540827,2.82,191.37,191.28,4.7045]
[1761326541425,63.38,191.36,191.28,4.7045]
[1761326541626,2.82,191.35,191.28,4.7045]
[1761326542417,2.82,191.35,191.29,4.7042]
[1761326543425,63.36,191.36,191.29,4.7042]
[1761326543625,2.82,191.35,191.29,4.7042]
[1761326544325,16.0,191.42,191.29,4.7042]
[1761326544326,2.82,191.39,191.29,4.7042]
[1761326544528,2.82,191.39,191.3,3.41187729]
[1761326544835,2.82,191.39,191.26,63.4]
[1761326544836,2.82,191.39,191.27,6.40645701]
[1761326545030,2.82,191.39,191.34,2.1836613]
[1761326545230,18.82,191.42,191.34,2.1836613]
[1761326545430,63.42,191.41,191.34,2.1836613]
[1761326545935,66.24,191.41,191.34,6.8865613]
[1761326546136,2.82,191.4,191.34,6.8865613]
[1761326547137,2.82,191.4,191.36,2.1836613]
[1761326548835,2.82,191.4,191.34,6.8865613]
[1761326550144,2.82,191.43,191.36,2.1836613]
[1761326550442,2.82,191.43,191.35,6.8863613]
[1761326551044,2.82,191.42,191.35,6.8863613]
[1761326551543,2.82,191.42,191.35,2.1836613]
[1761326551740,2.82,191.4,191.33,6.8869613]
[1761326552538,2.82,191.4,191.33,2.1836613]
[1761326553153,2.82,191.4,191.33,6.8868613]
[1761326553949,2.82,191.4,191.34,4.703]
[1761326555950,2.82,191.4,191.33,2.1836613]
[1761326556950,2.82,191.4,191.34,4.703]
[1761326557148,2.82,191.4,191.35,2.1836613]
[1761326558952,2.82,191.4,191.35,6.8863613]
[1761326560052,2.82,191.4,191.35,4.7027]
[1761326560249,2.82,191.4,191.35,6.8863613]
[1761326560651,2.82,191.4,191.35,4.7027]
[1761326562549,2.1836613,191.39,191.33,4.7033]
[1761326562754,2.86,191.38,191.33,4.7033]
[1761326563150,2.86,191.38,191.34,4.703]
[1761326563456,2.86,191.38,191.32,2.1836613]
[1761326563654,2.86,191.38,191.33,4.7033]
[1761326564450,2.86,191.38,191.32,2.1836613]
[1761326565953,2.86,191.38,191.34,4.7031]
[1761326568161,2.86,191.38,191.3,2.1836613]
[1761326568960,2.86,191.38,191.33,4.7033]
[1761326569556,2.86,191.38,191.3,2.1836613]
[1761326569557,2.86,191.38,191.34,4.703]
[1761326570262,2.86,191.38,191.35,4.7028]
[1761326571760,5.0436613,191.39,191.35,4.7028]
[1761326572861,2.86,191.38,191.35,4.7028]
[1761326574763,2.1836613,191.4,191.35,4.7028]
[1761326574962,5.0436613,191.4,191.35,4.7028]
[1761326575370,2.1836613,191.4,191.35,4.7028]
[1761326575575,2.86,191.39,191.35,4.7028]
[1761326579068,5.0436613,191.39,191.35,4.7028]
[1761326579267,2.86,191.38,191.35,4.7028]
[1761326580263,2.86,191.38,191.33,4.7033]
[1761326580569,2.86,191.34,191.28,2.1836613]
[1761326581158,2.86,191.34,191.28,8.59011831]
[1761326582166,2.86,191.34,191.27,8.59011831]
[1761326582374,5.0436613,191.33,191.25,190.53895131]
[1761326582764,2.86,191.33,191.3,4.704]
[1761326583867,2.86,191.32,191.28,4.7045]
[1761326584570,2.86,191.3,191.26,4.705]
[1761326588475,2.1836613,191.31,191.27,4.7047]
[1761326588669,2.78,191.31,191.27,4.7047]
[1761326588865,16.0,191.37,191.27,185.79111853]
[1761326589073,4.9636613,191.36,191.27,190.59501133]
[1761326589376,2.1836613,191.36,191.27,190.59501133]
[1761326589579,2.78,191.35,191.27,190.59501133]
[1761326589979,2.78,191.35,191.29,4.7042]
[1761326590983,9.33958147,191.38,191.31,2.1836613]
[1761326591282,2.78,191.37,191.3,2.1836613]
[1761326591681,4.37492148,191.39,191.3,2.1836613]
[1761326591876,2.78,191.42,191.35,2.1836613]
[1761326592675,2.78,191.42,191.35,6.9875541]
[1761326593180,2.78,191.42,191.36,4.7025]
[1761326595185,2.78,191.42,191.37,2.1836613]
[1761326597079,2.78,191.42,191.37,6.8859613]
[1761326599987,2.78,191.45,191.37,6.8859613]
[1761326600186,2.78,191.45,191.39,2.1836613]
[1761326602789,2.78,191.45,191.39,6.8854613]
[1761326604691,2.78,191.45,191.39,4.7018]
[1761326605989,63.44,191.45,191.39,4.7018]
[1761326606190,2.78,191.44,191.39,4.7018]
[1761326610893,2.78,191.43,191.39,4.7018]
[1761326612896,2.78,191.43,191.37,8.11276438]
[1761326616302,2.78,191.43,191.37,3.41056438]
[1761326617505,2.78,191.43,191.34,8.21445718]
[1761326618009,2.78,191.43,191.36,4.7025]
[1761326618801,2.78,191.43,191.37,4.7022]
[1761326620007,63.34,191.44,191.38,4.702]
[1761326621212,2.67,191.45,191.38,4.702]
[1761326621509,63.34,191.44,191.38,4.702]
[1761326622111,2.67,191.45,191.38,4.702]
[1761326622312,2.67,191.45,191.39,4.7018]
[1761326622507,65.99,191.45,191.34,8.21445718]
[1761326623008,2.67,191.44,191.4,4.7016]
[1761326624004,2.67,191.46,191.41,4.7013]
[1761326624213,2.67,191.45,191.41,187.5741102]
[1761326625412,2.67,191.44,191.41,187.5741102]
[1761326627419,2.67,191.44,191.41,182.8728102]
[1761326627615,2.67,191.43,191.41,182.8728102]
[1761326629619,2.67,191.43,191.41,187.5740102]
[1761326629816,2.67,191.43,191.41,182.8728102]
[1761326638930,65.97,191.43,191.41,182.8728102]
[1761326640221,2.65,191.42,191.41,182.8728102]
[1761326640929,65.95,191.43,191.41,182.8728102]
[1761326641119,2.65,191.47,191.41,182.8728102]
[1761326641320,2.65,191.45,191.41,182.8728102]
[1761326641822,63.3,191.44,191.41,182.8728102]
[1761326642019,2.65,191.45,191.41,182.8728102]
[1761326642223,65.95,191.45,191.41,182.8728102]
[1761326642419,63.3,191.46,191.41,182.8728102]
[1761326643531,2.65,191.48,191.41,182.8728102]
[1761326643725,67.70143107,191.47,191.41,182.8728102]
[1761326643923,4.40143107,191.46,191.42,4.701]
[1761326644128,2.65,191.47,191.42,4.701]
[1761326644325,67.7012759,191.46,191.42,4.701]
[1761326644524,63.3,191.46,191.42,4.701]
[1761326644731,2.65,191.47,191.42,4.701]
[1761326645030,4.4012759,191.46,191.42,4.701]
[1761326645230,65.95,191.47,191.42,4.701]
[1761326645430,4.40114362,191.46,191.42,4.701]
[1761326645631,65.95,191.47,191.42,4.701]
[1761326645930,4.40114362,191.46,191.42,4.701]
[1761326646132,65.95,191.47,191.42,4.701]
[1761326646326,4.40106747,191.46,191.42,4.701]
[1761326646527,2.0,191.49,191.41,182.8728102]
[1761326646733,67.70106607,191.48,191.41,182.8728102]
[1761326647031,4.40106607,191.47,191.41,182.8728102]
[1761326647236,63.3,191.48,191.41,182.8728102]
[1761326647437,4.40034241,191.47,191.41,182.8728102]
[1761326647633,63.3,191.48,191.41,182.8728102]
[1761326647930,2.0,191.49,191.41,182.8728102]
[1761326648135,67.69998654,191.48,191.41,187.67859784]
[1761326648337,63.3,191.48,191.41,187.67859784]
[1761326648532,63.3,191.48,191.44,4.7004]
[1761326648733,67.93,191.49,191.44,4.7004]
[1761326648934,4.39919564,191.48,191.44,4.7004]
[1761326649135,2.63,191.48,191.44,4.7004]
[1761326649630,6.39803636,191.49,191.45,4.7003]
[1761326649831,9.02803636,191.49,191.45,4.7003]
[1761326651038,4.63,191.49,191.45,4.7003]
[1761326651536,2.63,191.48,191.45,4.7003]
[1761326652234,67.93,191.49,191.45,4.7003]
[1761326653339,4.63,191.49,191.45,4.7003]
[1761326653641,67.93,191.49,191.46,4.7001]
[1761326653835,4.63,191.49,191.46,4.7001]
[1761326654335,2.0,191.49,191.47,4.6998]
[1761326656751,0.90891283,191.56,191.43,68.08578764]
[1761326656945,2.63,191.58,191.48,3.41056438]
[1761326657333,2.63,191.58,191.52,4.6985]
[1761326657641,2.63,191.61,191.52,4.6985]
[1761326657841,63.28,191.61,191.54,4.6982]
[1761326658044,2.63,191.6,191.51,3.41056438]
[1761326658239,3.41056438,191.56,191.45,4.80578764]
[1761326658444,2.63,191.54,191.42,8.21635202]
[1761326658638,2.63,191.54,191.43,4.80578764]
[1761326658639,63.34,191.53,191.43,4.80578764]
[1761326658833,2.63,191.55,191.45,3.41056438]
[1761326659038,2.63,191.55,191.46,4.80578764]
[1761326659238,2.63,191.55,191.45,8.21635202]
[1761326660248,2.57,191.55,191.46,4.7001]
[1761326660543,2.57,191.55,191.43,4.80578764]
[1761326660544,2.51,191.55,191.43,4.80578764]
[1761326661946,2.51,191.55,191.44,4.7006]
[1761326662941,2.51,191.55,191.45,3.41056438]
[1761326664352,2.63,191.54,191.44,4.7006]
[1761326664848,2.63,191.54,191.46,2.1811012]
[1761326666352,2.63,191.54,191.45,4.7003]
[1761326666553,2.63,191.54,191.46,2.1811012]
[1761326669753,2.63,191.54,191.48,2.1811012]
[1761326670349,2.63,191.54,191.47,2.1811012]
[1761326670954,16.0,191.6,191.47,2.1811012]
[1761326671152,2.63,191.58,191.49,2.1811012]
[1761326671354,2.63,191.57,191.49,2.1811012]
[1761326671557,2.63,191.56,191.49,2.1811012]
[1761326673357,2.63,191.56,191.49,6.8804012]
[1761326673550,2.63,191.56,191.51,2.1811012]
[1761326677860,2.63,191.56,191.45,4.80578764]
[1761326678163,2.63,191.56,191.5,2.1811012]
[1761326680363,2.63,191.56,191.45,4.80578764]
[1761326680553,2.63,191.56,191.5,2.1811012]
[1761326682059,2.72,191.6,191.5,4.699]
[1761326682266,2.72,191.58,191.51,2.1811012]
[1761326684669,2.72,191.58,191.5,6.8801012]
[1761326688063,2.72,191.56,191.48,6.8806012]
[1761326688264,2.72,191.54,191.48,6.8806012]
[1761326688469,2.72,191.54,191.48,4.6995]
[1761326689575,2.72,191.54,191.46,4.7001]
[1761326689874,2.72,191.52,191.46,4.7001]
[1761326690076,2.72,191.52,191.45,4.80578764]
[1761326692180,2.72,191.52,191.44,11.68748884]
[1761326692684,2.72,191.52,191.44,6.98688884]
[1761326692885,2.72,191.5,191.43,6.98688884]
[1761326693470,2.72,191.5,191.43,9.50658764]
[1761326693780,2.72,191.5,191.44,2.1811012]
[1761326694179,2.72,191.53,191.48,2.1811012]
[1761326694380,2.1811012,191.56,191.5,2.1811012]
[1761326694381,2.72,191.56,191.5,2.1811012]
[1761326694577,2.72,191.56,191.52,2.1811012]
[1761326694780,2.72,191.58,191.52,2.1811012]
[1761326694975,2.72,191.56,191.52,2.1811012]
[1761326696279,4.47437598,191.57,191.52,2.1811012]
[1761326696480,4.47437598,191.59,191.54,2.1811012]
[1761326696681,20.9011012,191.61,191.54,2.1811012]
[1761326696682,4.47437598,191.58,191.54,2.1811012]
[1761326696876,4.47437598,191.6,191.54,2.1811012]
[1761326697072,7.30437598,191.59,191.54,2.1811012]
[1761326697282,2.83,191.59,191.54,2.1811012]
[1761326697474,7.30437598,191.59,191.54,2.1811012]
[1761326697670,2.83,191.59,191.54,2.1811012]
[1761326697875,2.83,191.6,191.53,4.80578764]
[1761326698080,2.83,191.59,191.54,2.1811012]
[1761326698283,2.83,191.59,191.54,179.23403674]
[1761326700379,4.47500416,191.61,191.55,2.1811012]
[1761326700683,0.90871109,191.64,191.57,2.1811012]
[1761326700684,7.3047962,191.63,191.57,2.1811012]
[1761326700885,4.4747962,191.62,191.57,2.1811012]
[1761326701086,4.4747962,191.63,191.57,2.1811012]
[1761326701287,2.83,191.66,191.59,2.1811012]
[1761326701479,4.47388792,191.65,191.59,2.1811012]
[1761326701683,2.83,191.64,191.59,2.1811012]
[1761326701981,2.83,191.63,191.59,2.1811012]
[1761326704583,63.34,191.71,191.61,2.1811012]
[1761326704786,6.48030064,191.76,191.59,64.4]
[1761326704787,7.29434588,191.7,191.67,2.1811012]
[1761326705087,64.42,191.78,191.67,2.1811012]
[1761326705088,4.46434588,191.74,191.67,2.1811012]
[1761326705388,7.29434588,191.73,191.67,2.1811012]
[1761326705590,2.83,191.72,191.67,2.1811012]
[1761326706091,2.83,191.72,191.68,4.629061]
[1761326706283,2.83,191.72,191.69,4.629061]
[1761326706488,2.83,191.72,191.67,2.1811012]
[1761326706688,2.83,191.72,191.68,4.62582713]
[1761326706885,0.9079761,191.75,191.69,6.80692833]
[1761326706886,5.37232198,191.75,191.69,6.80692833]
[1761326707085,5.0111012,191.76,191.7,4.62582713]
[1761326707283,2.1811012,191.72,191.67,181.81960124]
[1761326707591,2.82,191.71,191.68,4.62190646]
[1761326707791,2.82,191.71,191.69,4.62190646]
[1761326707987,2.82,191.71,191.67,184.00070244]
[1761326708191,2.82,191.71,191.68,4.62236338]
[1761326708387,2.82,191.71,191.69,4.62236338]
[1761326708590,2.82,191.71,191.67,184.00070244]
[1761326708890,2.82,191.71,191.68,4.61953105]
[1761326709080,2.82,191.71,191.69,4.61953105]
[1761326709291,2.82,191.71,191.67,184.00070244]
[1761326709591,5.0011012,191.74,191.68,4.61687982]